bitfinex-derivatives/quotes_ETHF0:USTF0_20241022
["timestamp","ask_amount","ask_price","bid_price","bid_amount"]
[1729605026701,4.62512,2618.9,2618.4,0.38211]
[1729605027003,0.38206,2618.9,2618.8,0.38206]
[1729605027702,0.38201,2619.2,2619.1,0.382]
[1729605028105,0.38203,2619.1,2619.0,0.38202]
[1729605029296,4.16267,2619.6,2618.6,3.2078]
[1729605029595,0.382,2619.3,2619.2,0.38199]
[1729605029795,0.38202,2619.2,2619.1,0.38201]
[1729605029997,0.38198,2619.4,2619.3,0.38197]
[1729605030399,0.38201,2619.2,2619.0,3.2078]
[1729605030599,3.2078,2619.6,2619.0,3.2078]
[1729605030795,3.58975,2619.6,2619.5,0.38196]
[1729605030995,0.38197,2619.5,2619.4,0.38196]
[1729605031494,3.58975,2619.6,2619.5,0.38196]
[1729605031697,0.38195,2619.6,2619.5,0.38196]
[1729605031998,0.38197,2619.5,2619.4,0.38196]
[1729605032900,0.38197,2619.5,2619.1,0.95504]
[1729605032901,0.9548,2619.8,2619.1,0.95504]
[1729605033099,0.38204,2619.0,2618.9,0.38203]
[1729605033401,0.38203,2619.1,2619.0,0.38201]
[1729605033802,0.95508,2619.0,2618.2,0.95537]
[1729605033996,0.95508,2619.0,2618.1,3.2078]
[1729605033997,3.67,2618.8,2618.1,3.2078]
[1729605034197,1.932,2619.3,2618.1,3.2078]
[1729605034198,0.38215,2618.2,2618.1,3.2078]
[1729605034393,0.38215,2618.2,2617.8,0.3822]
[1729605034394,0.38219,2617.9,2617.8,0.3822]
[1729605034799,0.38221,2617.8,2617.7,0.38221]
[1729605034999,7.83315,2618.3,2617.4,3.2078]
[1729605035301,4.16325,2618.0,2617.6,0.38223]
[1729605035597,3.67,2618.1,2617.4,3.2078]
[1729605035795,0.38223,2617.7,2617.6,0.38223]
[1729605035997,7.83322,2618.1,2617.4,3.2078]
[1729605036200,0.38224,2617.6,2617.5,0.38225]
[1729605036592,0.38222,2617.7,2617.6,0.38223]
[1729605036797,0.95545,2618.0,2617.4,3.2078]
[1729605037197,0.95545,2618.0,2617.1,3.2078]
[1729605037198,3.67,2617.9,2617.1,3.2078]
[1729605037393,3.67,2617.6,2616.7,3.2078]
[1729605037596,0.38233,2617.0,2616.7,3.2078]
[1729605037810,3.2078,2617.2,2616.7,3.2078]
[1729605037993,0.38228,2617.3,2616.8,0.95589]
[1729605038209,5.1408,2617.5,2617.0,0.38231]
[1729605038498,0.3823,2617.2,2617.0,0.38231]
[1729605038806,0.38231,2617.1,2617.0,0.38231]
[1729605039002,5.1408,2617.5,2616.7,3.2078]
[1729605039395,0.38232,2617.1,2616.9,0.38233]
[1729605039695,0.38232,2617.1,2616.7,3.2078]
[1729605039894,0.38232,2617.1,2617.0,0.38232]
[1729605040098,6.09645,2617.5,2616.4,7.83381]
[1729605040501,6.09645,2617.5,2616.9,0.38233]
[1729605040700,6.09645,2617.5,2617.0,0.38231]
[1729605041093,5.1408,2617.5,2617.1,0.3823]
[1729605041301,3.2078,2617.5,2617.3,0.38227]
[1729605041498,0.38226,2617.5,2617.3,0.38226]
[1729605041796,5.603,2617.8,2616.9,3.2078]
[1729605041996,0.38222,2617.7,2617.6,0.38223]
[1729605042513,1.933,2617.8,2617.7,0.38222]
[1729605043008,5.753,2617.8,2617.7,0.38222]
[1729605043201,6.13521,2617.8,2617.7,0.38222]
[1729605043801,5.753,2617.8,2617.7,0.38222]
[1729605044197,3.82,2617.8,2617.7,0.38222]
[1729605044397,5.1408,2618.2,2617.4,3.2078]
[1729605044398,3.2078,2618.2,2617.4,3.2078]
[1729605044601,0.38221,2617.8,2617.7,0.38222]
[1729605044801,0.38217,2618.1,2618.0,0.38217]
[1729605045305,9.556,2618.4,2617.9,3.2078]
[1729605045505,3.67,2618.4,2618.0,0.38217]
[1729605045708,0.38216,2618.1,2618.0,0.38217]
[1729605046008,3.67,2618.4,2617.9,0.38219]
[1729605046009,0.38218,2618.0,2617.9,0.38219]
[1729605046399,4.62532,2618.4,2617.6,3.2078]
[1729605046400,0.3822,2617.9,2617.7,0.38222]
[1729605046608,0.38223,2617.7,2617.2,44.0078]
[1729605046903,3.67,2617.8,2616.9,4.16364]
[1729605047111,0.38227,2617.4,2617.3,0.38227]
[1729605047706,0.38229,2617.3,2617.2,0.38229]
[1729605047908,3.67,2617.6,2616.9,3.2078]
[1729605048311,0.38231,2617.1,2617.0,0.38231]
[1729605048505,0.38231,2617.1,2616.9,3.2078]
[1729605048807,0.38229,2617.2,2616.9,3.59013]
[1729605049008,3.67,2617.0,2616.3,3.2078]
[1729605049309,0.38237,2616.7,2616.6,0.38237]
[1729605049504,0.38237,2616.7,2616.5,3.2078]
[1729605049505,0.38236,2616.8,2616.7,0.38236]
[1729605049703,3.67,2617.0,2616.5,3.2078]
[1729605050010,3.67,2617.0,2616.6,0.38237]
[1729605050210,3.67,2617.0,2616.5,3.2078]
[1729605050407,0.38234,2616.9,2616.6,0.38237]
[1729605050612,0.38234,2616.9,2616.8,0.38234]
[1729605050815,3.2078,2617.1,2616.6,0.38237]
[1729605050816,0.38238,2616.7,2616.6,0.38237]
[1729605051008,0.38235,2616.9,2616.8,0.38235]
[1729605051208,0.38236,2616.8,2616.7,0.38236]
[1729605052512,3.67,2616.9,2616.6,0.38237]
[1729605052714,4.16359,2617.1,2616.5,3.2078]
[1729605052715,3.2078,2617.1,2616.5,3.2078]
[1729605052910,0.38234,2616.9,2616.6,1.33834]
[1729605053218,0.38234,2616.9,2616.8,0.38234]
[1729605053621,0.38237,2616.8,2616.7,0.38236]
[1729605053817,3.2078,2616.8,2616.1,3.2078]
[1729605054113,3.67,2616.9,2615.7,3.2078]
[1729605054114,3.2078,2616.4,2615.7,3.2078]
[1729605054311,0.38247,2616.0,2615.8,0.3825]
[1729605054519,3.67,2616.2,2615.7,3.2078]
[1729605054719,1.33851,2616.3,2615.8,0.38249]
[1729605055016,0.38247,2616.0,2615.9,0.38247]
[1729605055311,0.38247,2616.0,2615.9,0.38248]
[1729605055520,6.8778,2616.4,2615.7,3.2078]
[1729605055716,0.19542777,2616.6,2615.0,3.2078]
[1729605055717,3.67,2615.8,2615.0,3.2078]
[1729605055912,0.38256,2615.4,2615.3,0.38256]
[1729605056106,0.38257,2615.4,2615.3,0.38257]
[1729605056310,4.16407,2615.8,2615.3,3.8232]
[1729605056311,3.67,2615.8,2615.3,3.8232]
[1729605056510,2.006,2616.0,2615.3,3.2078]
[1729605056806,2.006,2616.0,2615.9,0.38248]
[1729605057211,0.38246,2616.1,2615.6,3.2078]
[1729605057411,4.0524,2616.5,2616.0,3.2078]
[1729605057715,4.0524,2616.5,2615.8,0.3825]
[1729605057716,0.38242,2616.4,2616.2,0.38244]
[1729605058022,3.67,2616.5,2615.7,4.16409]
[1729605058517,0.38244,2616.2,2616.0,0.38246]
[1729605058717,0.38243,2616.3,2616.2,0.38244]
[1729605058914,3.67,2616.3,2615.7,3.2078]
[1729605059113,6.8778,2616.3,2615.7,3.2078]
[1729605059422,4.0525,2615.8,2615.7,3.2078]
[1729605059614,0.38253,2615.6,2615.4,0.38254]
[1729605059810,0.38252,2615.7,2615.3,3.2078]
[1729605060018,3.67,2615.8,2615.5,0.38253]
[1729605060216,0.38251,2615.7,2615.3,3.59036]
[1729605060520,0.38254,2615.6,2615.4,0.38256]
[1729605060715,0.38254,2615.5,2615.4,0.38255]
[1729605060915,3.67,2615.8,2615.3,3.2078]
[1729605061116,0.38253,2615.6,2615.3,3.2078]
[1729605061307,3.67,2615.8,2615.4,0.38255]
[1729605061513,3.67,2615.8,2615.3,3.2078]
[1729605061819,3.67,2616.0,2615.6,3.2078]
[1729605062014,0.38254,2615.6,2615.4,0.38254]
[1729605062219,3.67,2615.8,2615.7,0.38251]
[1729605062419,7.4932,2615.8,2615.1,0.95651]
[1729605062617,3.67,2615.5,2615.1,0.95651]
[1729605062919,0.38256,2615.4,2615.3,0.38257]
[1729605063227,3.67,2615.5,2615.4,0.38256]
[1729605063515,3.2078,2616.0,2615.7,0.3825]
[1729605063516,4.0525,2615.8,2615.7,0.3825]
[1729605063911,7.8757,2615.8,2615.3,0.95641]
[1729605064109,3.67,2615.8,2615.7,0.38251]
[1729605064310,3.67,2615.8,2615.3,0.95641]
[1729605064611,0.38251,2615.7,2615.5,0.38253]
[1729605064813,4.05251,2615.8,2615.3,1.339]
[1729605065019,0.38252,2615.7,2615.6,0.38252]
[1729605065218,0.38254,2615.6,2615.5,0.38254]
[1729605065413,0.38253,2615.6,2615.5,0.38254]
[1729605065619,3.67,2615.8,2615.2,3.2078]
[1729605065820,0.38253,2615.6,2615.5,0.38253]
[1729605066016,3.67,2615.6,2615.2,3.2078]
[1729605066325,0.38257,2615.3,2615.2,3.2078]
[1729605066521,3.67,2615.6,2615.1,0.38259]
[1729605066713,3.67,2615.4,2614.9,3.2078]
[1729605066915,4.62656,2615.0,2614.2,3.2078]
[1729605067120,4.0527,2614.5,2614.4,0.3827]
[1729605067419,4.0527,2614.5,2613.5,1.91418]
[1729605067420,3.67,2614.3,2612.2,0.00494179]
[1729605067615,0.38298,2612.6,2611.9,3.59087]
[1729605067815,0.38298,2612.6,2611.9,3.2078]
[1729605067816,3.2078,2612.6,2611.9,3.2078]
[1729605068022,3.67,2612.0,2611.9,0.38307]
[1729605068219,3.67,2612.0,2611.5,3.2078]
[1729605068415,3.2078,2612.8,2611.9,3.2078]
[1729605068616,4.14,2612.4,2611.9,3.59086]
[1729605068815,4.14,2612.4,2611.9,3.2078]
[1729605069215,4.14,2612.0,2611.3,3.2078]
[1729605069417,4.14,2612.4,2611.9,3.2078]
[1729605069823,4.14,2612.0,2611.7,3.2078]
[1729605070018,4.14,2612.2,2611.7,3.2078]
[1729605070420,4.14,2612.2,2612.0,3.2078]
[1729605071130,4.14,2612.2,2611.6,3.2078]
[1729605071420,4.14,2612.2,2611.9,3.2078]
[1729605073827,3.2078,2613.2,2611.9,3.2078]
[1729605074035,3.2078,2613.2,2612.8,3.2078]
[1729605074221,4.14,2612.9,2612.5,3.2078]
[1729605074420,4.14,2612.9,2612.2,3.2078]
[1729605074617,0.38294,2612.8,2612.2,3.2078]
[1729605074816,4.14,2612.9,2612.2,3.2078]
[1729605075024,4.14,2612.9,2612.3,0.383]
[1729605075226,4.14,2612.6,2612.2,3.2078]
[1729605075522,4.52301,2612.3,2612.2,3.2078]
[1729605075719,4.14,2612.3,2611.9,3.2078]
[1729605075918,0.38305,2612.0,2611.9,3.2078]
[1729605076524,0.38305,2612.0,2610.5,5.09818]
[1729605076525,7.0366,2612.0,2611.2,3.2078]
[1729605076723,0.38311,2611.7,2611.2,3.2078]
[1729605076933,4.14,2611.9,2611.2,3.2078]
[1729605077132,4.52314,2611.5,2611.2,3.2078]
[1729605077420,4.52314,2611.5,2610.1,0.95833]
[1729605077421,0.95798,2611.1,2609.5,3.2078]
[1729605077621,4.33179825,2611.5,2609.8,3.2078]
[1729605077622,3.2078,2611.0,2609.8,3.2078]
[1729605077923,3.2078,2611.4,2610.4,3.2078]
[1729605078124,4.14,2611.4,2610.5,3.2078]
[1729605078328,4.14,2611.4,2610.3,0.95827]
[1729605078329,7.3478,2611.4,2610.3,3.2078]
[1729605078529,4.14,2611.4,2610.6,3.2078]
[1729605078828,4.14,2611.2,2610.3,3.2078]
[1729605079035,3.2078,2611.4,2611.3,0.38316]
[1729605079325,3.2078,2611.4,2610.7,3.2078]
[1729605079326,3.2078,2611.4,2611.2,0.38317]
[1729605079522,3.2078,2611.4,2611.3,0.38316]
[1729605080031,4.14,2611.7,2611.2,0.38317]
[1729605080216,4.14,2611.7,2611.1,0.38318]
[1729605080421,4.14,2611.7,2611.5,0.38312]
[1729605080627,4.14,2611.7,2611.4,0.38313]
[1729605080829,4.14,2611.7,2611.5,0.38312]
[1729605081023,4.14,2611.7,2611.5,0.38311]
[1729605081227,4.14,2611.7,2611.6,0.38311]
[1729605081529,3.2078,2611.8,2611.6,0.38311]
[1729605081727,3.2078,2611.8,2611.7,0.3831]
[1729605081930,34.483,2622.9,2611.5,3.2078]
[1729605081931,3.2078,2612.1,2611.5,3.2078]
[1729605082225,4.14,2612.0,2611.1,3.2078]
[1729605082432,4.14,2612.0,2610.8,0.95806]
[1729605082433,3.2078,2611.5,2610.8,0.95806]
[1729605082630,3.2078,2611.5,2611.4,0.38314]
[1729605083220,7.3478,2612.0,2611.4,3.8296]
[1729605083420,3.2078,2612.0,2611.2,0.95793]
[1729605083728,3.2078,2612.0,2611.9,0.38307]
[1729605084234,7.3478,2612.5,2611.9,3.8288]
[1729605084525,4.14,2612.5,2611.8,3.2078]
[1729605084731,4.14,2612.5,2612.1,0.38303]
[1729605085129,4.14,2612.5,2611.5,3.2078]
[1729605085130,3.2078,2612.4,2611.5,3.2078]
[1729605085426,3.2078,2612.4,2612.0,0.38305]
[1729605085623,3.2078,2612.4,2611.2,0.95792]
[1729605085624,3.2078,2612.4,2611.3,0.95789]
[1729605085819,3.2078,2612.4,2612.2,0.38302]
[1729605086032,3.2078,2612.4,2611.5,0.95779]
[1729605086229,3.2078,2612.4,2612.2,0.38302]
[1729605086427,3.2078,2612.4,2611.2,4.16571]
[1729605086641,3.2078,2612.0,2611.9,0.38307]
[1729605087229,3.2078,2612.0,2611.8,0.38307]
[1729605087440,3.2078,2612.0,2611.9,0.38307]
[1729605087626,3.2078,2612.3,2611.5,0.95779]
[1729605087937,3.2078,2612.3,2612.2,0.38302]
[1729605088930,3.2078,2612.3,2612.2,3.828]
[1729605089232,3.2078,2612.3,2611.0,1.91599]
[1729605089422,3.2078,2611.1,2610.1,3.2078]
[1729605089734,7.0358,2611.4,2611.3,0.38316]
[1729605090128,3.828,2611.4,2611.3,0.38316]
[1729605091022,3.2078,2611.5,2610.9,0.95801]
[1729605091223,3.2078,2611.8,2611.7,0.3831]
[1729605091630,7.0358,2611.8,2610.9,0.95805]
[1729605091825,3.828,2611.7,2611.6,0.38311]
[1729605092031,3.2078,2612.1,2611.0,3.2078]
[1729605092235,3.828,2611.9,2611.8,0.38308]
[1729605093029,3.2078,2612.1,2612.0,0.38305]
[1729605093425,7.0358,2612.1,2612.0,0.38305]
[1729605094227,7.0358,2612.1,2611.5,0.95783]
[1729605094431,3.2078,2611.9,2611.2,3.2078]
[1729605094637,3.2078,2611.9,2611.8,0.38308]
[1729605094933,3.2078,2612.3,2611.5,3.2078]
[1729605095131,2.254,2612.9,2611.9,0.38307]
[1729605095132,3.2078,2612.0,2611.9,0.38307]
[1729605095530,7.0358,2612.0,2611.9,0.38307]
[1729605096032,3.2078,2612.0,2611.9,0.38307]
[1729605096229,1.48256682,2612.0,2611.9,0.38307]
[1729605097035,5.31056682,2612.0,2611.3,3.2078]
[1729605097236,3.2078,2611.7,2611.6,0.3831]
[1729605097842,0.38305,2612.1,2611.2,4.16571]
[1729605097843,3.2078,2612.0,2611.9,0.38307]
[1729605098132,3.828,2611.8,2611.7,0.3831]
[1729605098934,3.2078,2612.0,2611.9,0.38307]
[1729605099634,7.0358,2612.0,2611.9,0.38307]
[1729605099938,6.07693735,2612.0,2611.9,0.38307]
[1729605100136,6.07693735,2612.0,2611.8,0.38307]
[1729605100443,3.828,2611.8,2611.7,0.38309]
[1729605100760,3.828,2611.6,2611.5,0.38312]
[1729605101131,3.828,2611.6,2611.3,0.38315]
[1729605101442,3.828,2611.1,2611.0,0.3832]
[1729605103136,7.27095,2611.4,2611.3,0.38316]
[1729605103137,3.2078,2611.4,2611.3,0.38316]
[1729605103734,3.828,2611.4,2611.3,0.38316]
[1729605103935,3.59089,2611.8,2611.7,0.3831]
[1729605104141,3.828,2611.7,2611.3,0.9579]
[1729605104338,3.828,2611.8,2611.5,0.95781]
[1729605104638,3.828,2611.8,2611.7,0.3831]
[1729605104932,3.68,2611.9,2611.5,0.38313]
[1729605104933,3.828,2611.6,2611.5,0.38313]
[1729605105326,6.54936236,2611.6,2611.5,0.38313]
[1729605105733,3.2078,2611.8,2611.2,3.2078]
[1729605105930,2.86936236,2611.8,2611.5,4.16559]
[1729605106127,6.8878,2612.5,2611.7,0.3831]
[1729605106333,3.2078,2612.8,2612.7,0.38295]
[1729605106731,2.86936236,2612.8,2612.7,0.38295]
[1729605106933,3.2078,2613.4,2612.3,40.8]
[1729605107231,2.86936236,2613.0,2612.9,0.38292]
[1729605107435,4.14,2613.3,2612.9,0.38292]
[1729605107643,2.86936236,2613.0,2612.9,0.38292]
[1729605108344,0.38292,2612.9,2612.8,0.38293]
[1729605108529,0.38295,2612.7,2612.6,0.38296]
[1729605108736,3.25233236,2612.6,2612.5,3.59078]
[1729605109050,2.86936236,2612.6,2612.0,5.12304]
[1729605109342,2.86936236,2612.1,2612.0,0.38305]
[1729605110638,3.2078,2612.6,2612.5,0.38298]
[1729605110840,2.86936236,2612.1,2612.0,0.38305]
[1729605111232,3.2078,2612.6,2612.5,0.38298]
[1729605111443,2.86936236,2612.5,2612.4,0.383]
[1729605111744,2.86936236,2612.7,2612.4,1.52194746]
[1729605112047,2.86936236,2612.7,2612.3,3.2078]
[1729605112048,2.86936236,2612.7,2612.6,0.38297]
[1729605112339,3.2078,2613.2,2612.6,1.52497492]
[1729605112543,2.86936236,2612.8,2612.7,1.90792492]
[1729605112846,2.86936236,2612.7,2612.6,0.38297]
[1729605113339,3.59068,2613.2,2613.0,0.3829]
[1729605113552,2.86936236,2612.8,2612.7,0.38295]
[1729605113938,2.86936236,2612.8,2612.3,6.14820124]
[1729605114133,2.86936236,2612.8,2612.7,0.38295]
[1729605114445,2.86936236,2612.4,2612.3,3.59081]
[1729605114641,2.86936236,2612.4,2612.3,5.11623792]
[1729605114835,2.86936236,2612.4,2612.3,3.59081]
[1729605115040,6.07716236,2612.4,2612.0,3.2078]
[1729605115238,2.86936236,2612.1,2612.0,0.38304]
[1729605115549,2.86936236,2612.1,2611.7,3.59089]
[1729605115550,3.25241236,2612.1,2611.7,3.59089]
[1729605115744,2.86936236,2612.0,2611.7,0.38309]
[1729605116048,2.86936236,2611.8,2611.6,0.3831]
[1729605116240,2.86936236,2611.7,2611.6,0.3831]
[1729605116438,2.86936236,2611.7,2611.3,3.2078]
[1729605116655,2.86936236,2611.7,2611.6,0.38311]
[1729605116843,3.59084,2612.1,2611.4,0.95786]
[1729605117045,2.86936236,2611.4,2611.0,3.2078]
[1729605117255,2.86936236,2611.5,2611.3,3.2078]
[1729605117546,2.86936236,2611.6,2611.5,0.38313]
[1729605117849,3.2078,2612.1,2611.6,0.38311]
[1729605117850,2.86936236,2611.7,2611.6,0.38311]
[1729605118146,2.86936236,2611.6,2611.1,3.2078]
[1729605118345,2.86936236,2611.6,2611.5,0.38313]
[1729605119452,3.59085,2612.1,2611.7,0.38309]
[1729605119644,3.59085,2612.1,2611.7,0.3831]
[1729605119645,2.86807122,2611.8,2611.7,0.3831]
[1729605119843,3.2078,2612.1,2611.9,0.38306]
[1729605120043,2.86807122,2611.9,2611.8,0.38308]
[1729605120246,2.86807122,2611.7,2611.4,4.16565]
[1729605120549,2.86807122,2611.9,2611.7,0.38309]
[1729605120746,2.86807122,2611.5,2610.9,5.19070124]
[1729605120945,2.86807122,2611.0,2610.9,3.59102]
[1729605121153,2.29283699,2611.0,2610.9,3.59102]
[1729605121450,2.29283699,2611.0,2610.9,0.38322]
[1729605122153,2.29283699,2611.0,2610.2,0.38331]
[1729605122154,0.38328,2610.5,2610.2,0.38331]
[1729605122452,2.29283699,2610.4,2610.2,0.38331]
[1729605122652,2.29283699,2610.3,2610.2,0.38332]
[1729605123051,2.29283699,2610.3,2610.0,0.38334]
[1729605123052,2.67614699,2610.3,2610.0,0.38334]
[1729605123252,2.67614699,2610.3,2609.8,0.07]
[1729605123253,2.29283699,2610.1,2609.8,0.07]
[1729605123454,2.29283699,2609.9,2609.8,0.45334]
[1729605125859,2.29283699,2609.9,2609.8,0.07]
[1729605126558,2.67615699,2609.9,2609.8,0.07]
[1729605126749,2.29283699,2609.9,2609.8,0.07]
[1729605128361,5.97283699,2609.9,2609.8,0.07]
[1729605129257,6.8878,2610.5,2609.8,3.2778]
[1729605129563,2.29283699,2610.1,2610.0,0.38331]
[1729605129762,3.68,2610.7,2609.9,0.95831]
[1729605129952,3.2078,2611.3,2609.8,3.2778]
[1729605129953,2.29283699,2610.6,2610.5,0.38324]
[1729605130149,3.68,2611.2,2611.1,0.38315]
[1729605130350,2.29283699,2611.0,2610.6,0.95806]
[1729605130557,2.29283699,2611.0,2610.9,3.59098]
[1729605130755,3.68,2611.5,2611.0,0.38316]
[1729605130960,2.29283699,2611.4,2611.3,0.38312]
[1729605131253,3.68,2611.5,2611.0,3.2078]
[1729605131457,2.29283699,2610.8,2610.7,0.3832]
[1729605131753,3.68,2610.8,2610.3,3.2078]
[1729605131962,0.38326,2610.4,2609.9,3.59112]
[1729605132260,2.29283699,2610.1,2609.9,3.2078]
[1729605132456,2.29283699,2610.0,2609.9,3.2078]
[1729605132859,2.29283699,2610.0,2609.9,0.38332]
[1729605133759,2.29283699,2610.0,2609.8,0.45333]
[1729605134063,2.29283699,2609.9,2609.8,0.45333]
[1729605134566,2.29283699,2609.9,2609.8,0.07]
[1729605134754,2.67615699,2609.9,2609.8,0.07]
[1729605134953,5.88395699,2609.9,2609.8,0.07]
[1729605135958,0.38339,2609.5,2609.1,3.2078]
[1729605136156,1.83941699,2609.2,2609.1,3.59124]
[1729605136562,1.83941699,2609.2,2609.1,3.2078]
[1729605136762,2.22284699,2609.2,2609.1,3.2078]
[1729605136953,7.3478,2609.3,2608.3,3.2078]
[1729605137158,7.3478,2609.3,2607.2,9.586]
[1729605137159,3.2078,2609.3,2608.6,3.2078]
[1729605137360,3.2078,2609.3,2608.5,0.95883]
[1729605137562,3.2078,2609.3,2609.0,0.38345]
[1729605137758,3.2078,2609.3,2609.1,0.38344]
[1729605138065,3.8328,2609.2,2608.5,0.95883]
[1729605138363,3.8328,2609.2,2607.6,3.2078]
[1729605138364,7.3478,2608.6,2607.6,3.2078]
[1729605138553,7.3478,2608.6,2607.8,4.16687]
[1729605138554,3.2078,2608.6,2607.8,4.16687]
[1729605138760,13.30575724,2609.8,2607.8,4.16687]
[1729605138761,3.2078,2609.5,2608.4,3.2078]
[1729605138957,3.2078,2610.1,2609.2,3.2078]
[1729605139259,3.2078,2610.1,2609.9,0.38332]
[1729605139461,3.2078,2610.1,2609.5,3.2078]
[1729605139660,3.2078,2610.1,2610.0,0.38331]
[1729605139961,4.14,2610.3,2609.6,40.8]
[1729605140467,3.2078,2610.4,2609.6,40.8]
[1729605140659,4.52323,2610.6,2610.0,0.3833]
[1729605140853,4.52323,2610.6,2609.6,40.8]
[1729605140854,3.2078,2610.4,2609.6,40.8]
[1729605141065,3.2078,2610.1,2610.0,0.38331]
[1729605141265,4.14,2610.3,2609.5,3.2078]
[1729605141564,3.2078,2610.1,2609.4,3.2078]
[1729605141965,3.2078,2610.4,2610.0,0.38331]
[1729605142159,3.2078,2610.4,2609.7,3.2078]
[1729605142363,3.2078,2610.4,2610.2,0.38328]
[1729605142572,3.2078,2610.4,2609.7,3.2078]
[1729605142762,4.14,2610.2,2609.7,3.2078]
[1729605142968,3.2078,2610.4,2609.4,3.2078]
[1729605143276,3.59106,2610.4,2610.0,0.3833]
[1729605143560,3.2078,2610.4,2609.4,3.2078]
[1729605143765,3.2078,2610.7,2610.0,3.2078]
[1729605143971,4.14,2610.9,2610.1,0.95824]
[1729605144173,4.14,2610.9,2610.1,3.2078]
[1729605144360,3.2078,2611.0,2610.9,0.38318]
[1729605144672,4.14,2611.3,2610.1,3.2078]
[1729605144673,4.14,2611.3,2610.5,0.9581]
[1729605144961,3.2078,2611.0,2610.0,3.2078]
[1729605145167,3.2078,2611.0,2610.9,0.38318]
[1729605145365,3.2078,2611.0,2610.3,0.95815]
[1729605145666,3.2078,2611.0,2610.9,0.38318]
[1729605146056,4.14,2611.7,2611.3,0.3831]
[1729605146256,3.59085,2611.8,2610.6,3.2078]
[1729605146257,4.52311,2611.4,2610.6,3.2078]
[1729605146466,3.2078,2611.2,2610.2,3.2078]
[1729605146658,4.14,2611.4,2611.2,0.38313]
[1729605147055,3.2078,2611.5,2611.2,3.8296]
[1729605147270,3.2078,2611.5,2610.7,0.95802]
[1729605147271,4.14,2611.7,2611.4,0.3831]
[1729605147467,4.14,2611.7,2610.9,3.2078]
[1729605147660,4.14,2612.0,2610.9,3.2078]
[1729605148057,3.2078,2611.8,2611.0,0.38316]
[1729605148260,3.2078,2611.8,2610.9,3.2078]
[1729605148961,4.52307,2611.7,2611.2,0.38313]
[1729605149167,0.38316,2611.0,2610.5,0.38323]
[1729605149471,0.38316,2611.0,2609.6,1.48944957]
[1729605149472,7.3478,2610.6,2609.9,3.2078]
[1729605149661,0.38328,2610.3,2609.9,3.2078]
[1729605149860,7.3478,2610.6,2609.9,3.2078]
[1729605150463,7.73103,2610.6,2609.9,3.2078]
[1729605150660,3.2078,2610.6,2610.4,0.38324]
[1729605151061,3.2078,2610.6,2610.2,0.38327]
[1729605151368,3.2078,2610.6,2610.1,0.38328]
[1729605151661,3.59103,2610.6,2610.2,0.38328]
[1729605152257,3.2078,2610.6,2609.9,3.2078]
[1729605152664,3.59103,2610.6,2610.2,0.38328]
[1729605152863,3.2078,2610.6,2610.2,0.38328]
[1729605153066,3.59103,2610.6,2610.2,0.38327]
[1729605153266,3.59103,2610.6,2609.9,3.2078]
[1729605153267,0.38324,2610.5,2610.1,0.38328]
[1729605153465,3.2078,2610.3,2609.3,4.16634]
[1729605153672,3.59107,2610.3,2609.9,0.38331]
[1729605153965,3.2078,2610.3,2609.6,3.2078]
[1729605154170,0.38329,2610.2,2609.9,0.38332]
[1729605154378,3.2078,2610.0,2609.3,3.2078]
[1729605154574,3.2078,2610.0,2608.9,3.2078]
[1729605154575,3.2078,2609.7,2608.9,3.2078]
[1729605154774,3.2078,2609.4,2608.4,4.16666]
[1729605155077,3.2078,2609.4,2608.8,0.38349]
[1729605155368,3.2078,2609.4,2609.3,0.38341]
[1729605155667,3.2078,2609.4,2608.7,3.2078]
[1729605155871,3.2078,2609.4,2608.6,3.2078]
[1729605156368,3.2078,2609.4,2609.3,0.38341]
[1729605156577,3.2078,2609.4,2608.6,3.2078]
[1729605156768,3.2078,2609.4,2609.3,0.38341]
[1729605157269,3.2078,2609.4,2609.3,4.21541]
[1729605157872,3.5912,2609.4,2609.1,0.38344]
[1729605158171,3.2078,2609.4,2609.3,0.38341]
[1729605158374,3.2078,2609.8,2608.5,4.1666]
[1729605158566,3.59124,2609.2,2608.9,0.38346]
[1729605158765,3.2078,2609.2,2608.6,0.38351]
[1729605158966,0.38346,2609.0,2608.4,40.8]
[1729605159176,3.2078,2609.2,2608.4,40.8]
[1729605159567,3.2078,2609.2,2608.6,3.2078]
[1729605159770,3.2078,2609.5,2609.3,0.38341]
[1729605160574,3.59119,2609.5,2609.3,0.3834]
[1729605160761,2.93579285,2610.4,2609.4,3.832]
[1729605160762,3.2078,2609.8,2609.4,3.832]
[1729605160962,3.2078,2609.8,2609.2,3.2078]
[1729605160963,3.2078,2609.8,2609.6,0.38337]
[1729605161168,0.38332,2610.0,2609.8,0.38334]
[1729605161371,7.3478,2610.2,2609.1,4.16638]
[1729605161693,2.495,2610.6,2608.8,3.2078]
[1729605161694,3.2078,2609.3,2608.8,3.2078]
[1729605161975,3.2078,2609.3,2609.2,0.38343]
[1729605162171,3.2078,2609.3,2608.7,3.2078]
[1729605162365,0.38347,2609.0,2608.3,4.16668]
[1729605162565,3.2078,2609.3,2608.4,0.95885]
[1729605162777,3.2078,2609.3,2608.4,3.2078]
[1729605162975,3.2078,2609.3,2608.3,40.8]
[1729605163276,3.2078,2609.3,2608.4,4.16667]
[1729605163470,3.2078,2609.3,2609.2,0.38343]